fUSD/lending_fUSD_20241215
["ID","MTS","AMOUNT","RATE_DAILY","PERIOD"]
[345473714,1734280255266,-209.34,0.00019999,3]
[345473715,1734280255275,-528.72,0.00019999,3]
[345473716,1734280255288,-500.0,0.00019999,3]
[345473717,1734280255299,-500.0,0.00019999,3]
[345473718,1734280255309,-151.0,0.00019999,2]
[345473719,1734280255318,-500.0,0.00019999,3]
[345473720,1734280255329,-268.06,0.00019999,3]
[345473721,1734280255339,-151.0,0.00019999,2]
[345473722,1734280255349,-151.0,0.00019999,2]
[345473723,1734280255359,-642.08,0.00019999,3]
[345473724,1734280255371,-313.8,0.00019999,3]
[345473725,1734280255381,-500.0,0.00019999,3]
[345473726,1734280255390,-508.36,0.00019999,3]
[345473727,1734280255400,-151.0,0.00019999,2]
[345473728,1734280255410,-151.0,0.00019999,2]
[345473729,1734280255419,-151.0,0.00019999,2]
[345473730,1734280255428,-153.72,0.00019999,3]
[345473731,1734280255438,-151.0,0.00019999,2]
[345473732,1734280255447,-151.492312,0.00019999,2]
[345473733,1734280255456,-186.65,0.00019999,3]
[345473734,1734280255465,-500.0,0.00019999,3]
[345473735,1734280255474,-389.94,0.00019999,3]
[345473736,1734280255484,-500.0,0.00019999,3]
[345473737,1734280255493,-500.0,0.00019999,3]
[345473738,1734280255503,-523.5,0.00019999,3]
[345473739,1734280255512,-500.0,0.00019999,3]
[345473740,1734280255521,-335.92,0.00019999,3]
[345473741,1734280255532,-213.892303,0.00019999,2]
[345473742,1734280255542,-500.0,0.00019999,3]
[345473743,1734280255551,-500.0,0.00019999,3]
[345473744,1734280255561,-379.9,0.00019999,3]
[345473745,1734280255570,-349.28,0.00019999,3]
[345473746,1734280255580,-216.96,0.00019999,3]
[345473747,1734280255589,-182.060944,0.00019999,2]
[345473748,1734280255598,-500.0,0.00019999,3]
[345473749,1734280255608,-500.0,0.00019999,3]
[345473750,1734280255617,-365.26,0.00019999,3]
[345473751,1734280255626,-500.0,0.00019999,3]
[345473752,1734280255636,-540.37,0.00019999,3]
[345473753,1734280255646,-151.0,0.00019999,2]
[345473754,1734280255656,-500.0,0.00019999,3]
[345473755,1734280255665,-500.0,0.00019999,3]
[345473756,1734280255675,-500.0,0.00019999,3]
[345473757,1734280255685,-174.12,0.00019999,3]
[345473758,1734280255695,-451.07,0.00019999,3]
[345473759,1734280255705,-168.02,0.00019999,3]
[345473760,1734280255715,-285.7,0.00019999,3]
[345473761,1734280255724,-219.07,0.00019999,3]
[345473762,1734280255733,-244.47,0.00019999,3]
[345473763,1734280255743,-190.26,0.00019999,3]
[345473764,1734280255752,-500.0,0.00019999,3]
[345473765,1734280255762,-500.0,0.00019999,3]
[345473766,1734280255771,-500.0,0.00019999,3]
[345473767,1734280255780,-500.0,0.00019999,3]
[345473768,1734280255790,-161.69,0.00019999,3]
[345473769,1734280255799,-185.29,0.00019999,3]
[345473770,1734280255808,-500.0,0.00019999,3]
[345473771,1734280255817,-403.84,0.00019999,3]
[345473772,1734280255828,-151.0,0.00019999,2]
[345473773,1734280255838,-151.710768,0.00019999,2]
[345473774,1734280255847,-151.0,0.00019999,2]
[345473775,1734280255857,-500.0,0.00019999,3]
[345473776,1734280255866,-500.0,0.00019999,3]
[345473777,1734280255876,-500.0,0.00019999,3]
[345473778,1734280255885,-500.0,0.00019999,3]
[345473779,1734280255895,-348.8,0.00019999,3]
[345473780,1734280255904,-500.0,0.00019999,3]
[345473781,1734280255913,-500.0,0.00019999,3]
[345473782,1734280255923,-500.0,0.00019999,3]
[345473783,1734280255932,-500.0,0.00019999,3]
[345473784,1734280255942,-503.26,0.00019999,3]
[345473785,1734280255951,-500.0,0.00019999,3]
[345473786,1734280255961,-271.44,0.00019999,3]
[345473787,1734280255970,-591.24,0.00019999,3]
[345473788,1734280255980,-184.5,0.00019999,3]
[345473789,1734280255990,-181.38,0.00019999,3]
[345473790,1734280255999,-181.32,0.00019999,3]
[345473791,1734280256008,-500.0,0.00019999,3]
[345473792,1734280256018,-328.5,0.00019999,3]
[345473793,1734280256027,-220.82,0.00019999,3]
[345473794,1734280256038,-535.86,0.00019999,3]
[345473795,1734280256047,-500.0,0.00019999,3]
[345473796,1734280256057,-433.78,0.00019999,3]
[345473797,1734280256066,-265.85,0.00019999,3]
[345473798,1734280256076,-348.98,0.00019999,3]
[345473799,1734280256085,-500.0,0.00019999,3]
[345473800,1734280256094,-500.0,0.00019999,3]
[345473801,1734280256104,-401.72,0.00019999,3]
[345473802,1734280256114,-151.0,0.00019999,2]
[345473803,1734280256124,-382.04,0.00019999,3]
[345473804,1734280256133,-500.0,0.00019999,3]
[345473805,1734280256142,-330.88,0.00019999,3]
[345473806,1734280256153,-500.0,0.00019999,3]
[345473807,1734280256162,-500.0,0.00019999,3]
[345473808,1734280256171,-500.0,0.00019999,3]
[345473809,1734280256180,-500.0,0.00019999,3]
[345473810,1734280256190,-500.0,0.00019999,3]
[345473811,1734280256200,-500.0,0.00019999,3]
[345473812,1734280256210,-500.0,0.00019999,3]
[345473813,1734280256221,-553.81048965,0.00019999,3]
[345473814,1734280256231,-500.0,0.00019999,3]
[345473815,1734280256240,-506.65,0.00019999,3]
[345473816,1734280256250,-374.86852864,0.00019999,3]
[345473817,1734280256261,-334.09002,0.00019999,3]
[345473818,1734280256271,-500.0,0.00019999,3]
[345473819,1734280256280,-294.90998497,0.00019999,3]
[345473820,1734280256294,-300.11,0.00019999,3]
[345473821,1734280256304,-151.0,0.00019999,2]
[345473822,1734280256313,-309.52,0.00019999,3]
[345473823,1734280256323,-151.0,0.00019999,2]
[345473824,1734280256334,-151.0,0.00019999,2]
[345473825,1734280256344,-500.0,0.00019999,3]
[345473826,1734280256354,-500.0,0.00019999,3]
[345473827,1734280256365,-244.52,0.00019999,3]
[345473828,1734280256375,-500.0,0.00019999,3]
[345473829,1734280256387,-500.0,0.00019999,3]
[345473830,1734280256397,-292.97,0.00019999,3]
[345473831,1734280256406,-442.86,0.00019999,3]
[345473832,1734280256416,-768.38,0.00019999,3]
[345473833,1734280256426,-768.38,0.00019999,3]
[345473834,1734280256436,-768.38,0.00019999,3]
[345473835,1734280256445,-768.38,0.00019999,3]
[345473836,1734280256455,-768.38,0.00019999,3]
[345473837,1734280256465,-768.38,0.00019999,3]
[345473838,1734280256475,-768.38,0.00019999,3]
[345473839,1734280256484,-768.38,0.00019999,3]
[345473840,1734280256494,-768.38,0.00019999,3]
[345473841,1734280256503,-768.38,0.00019999,3]
[345473842,1734280256513,-768.38,0.00019999,3]
[345473843,1734280256522,-768.38,0.00019999,3]
[345473844,1734280256532,-768.38,0.00019999,3]
[345473845,1734280256544,-768.38,0.00019999,3]
[345473846,1734280256554,-768.38,0.00019999,3]
[345473847,1734280256564,-768.38,0.00019999,3]
[345473848,1734280256573,-768.38,0.00019999,3]
[345473849,1734280256582,-768.38,0.00019999,3]
[345473850,1734280256592,-768.38,0.00019999,3]
[345473851,1734280256601,-768.38,0.00019999,3]
[345473852,1734280256610,-768.42110734,0.00019999,3]
[345473853,1734280256620,-500.0,0.00019999,3]
[345473854,1734280256629,-500.0,0.00019999,3]
[345473855,1734280256639,-197.24,0.00019999,3]
[345473856,1734280256649,-500.0,0.00019999,3]
[345473857,1734280256659,-500.0,0.00019999,3]
[345473858,1734280256668,-238.83,0.00019999,3]
[345473859,1734280256803,-500.0,0.00019999,3]
[345473860,1734280256813,-500.0,0.00019999,3]
[345473861,1734280256823,-170.9,0.00019999,3]
[345473862,1734280256833,-500.0,0.00019999,3]
[345473863,1734280256843,-500.0,0.00019999,3]
[345473864,1734280256853,-600.71,0.00019999,3]
[345473865,1734280256862,-334.77,0.00019999,3]
[345473866,1734280256872,-257.36,0.00019999,3]
[345473867,1734280256882,-500.0,0.00019999,3]
[345473868,1734280256891,-378.89,0.00019999,3]
[345473869,1734280256901,-500.0,0.00019999,3]
[345473870,1734280256911,-521.01,0.00019999,3]
[345473871,1734280256920,-500.0,0.00019999,3]
[345473872,1734280256930,-500.0,0.00019999,3]
[345473873,1734280256940,-152.21,0.00019999,3]
[345473874,1734280256950,-500.0,0.00019999,3]
[345473875,1734280256961,-500.0,0.00019999,3]
[345473876,1734280256970,-500.0,0.00019999,3]
[345473877,1734280256980,-500.0,0.00019999,3]
[345473878,1734280256991,-500.0,0.00019999,3]
[345473879,1734280257000,-500.0,0.00019999,3]
[345473880,1734280257010,-500.0,0.00019999,3]
[345473881,1734280257020,-500.0,0.00019999,3]
[345473882,1734280257030,-500.0,0.00019999,3]
[345473883,1734280257042,-500.0,0.00019999,3]
[345473884,1734280257052,-500.0,0.00019999,3]
[345473885,1734280257061,-500.0,0.00019999,3]
[345473886,1734280257071,-500.0,0.00019999,3]
[345473887,1734280257080,-500.0,0.00019999,3]
[345473888,1734280257090,-500.0,0.00019999,3]
[345473889,1734280257099,-500.0,0.00019999,3]
[345473890,1734280257108,-500.0,0.00019999,3]
[345473891,1734280257118,-500.0,0.00019999,3]
[345473892,1734280257127,-500.0,0.00019999,3]
[345473893,1734280257136,-577.56,0.00019999,3]
[345473894,1734280257146,-500.0,0.00019999,3]
[345473895,1734280257155,-233.86993841,0.00019999,3]
[345473896,1734280257164,-500.0,0.00019999,3]
[345473897,1734280257174,-500.0,0.00019999,3]
[345473898,1734280257183,-500.0,0.00019999,3]
[345473899,1734280257193,-500.0,0.00019999,3]
[345473900,1734280257203,-389.15,0.00019999,3]
[345473901,1734280257212,-500.0,0.00019999,3]
[345473902,1734280257221,-500.0,0.00019999,3]
[345473903,1734280257231,-469.99,0.00019999,3]
[345473904,1734280257242,-151.0,0.00019999,2]
[345473905,1734280257252,-151.0,0.00019999,2]
[345473906,1734280257262,-151.0,0.00019999,2]
[345473907,1734280257271,-151.0,0.00019999,2]
[345473908,1734280257282,-151.0,0.00019999,2]
[345473909,1734280257296,-192.042486,0.00019999,2]
[345473910,1734280257308,-151.0,0.00019999,2]
[345473911,1734280257317,-254.54899,0.00019999,2]
[345473912,1734280257327,-151.0,0.00019999,2]
[345473913,1734280257337,-151.0,0.00019999,2]
[345473914,1734280257346,-151.0,0.00019999,2]
[345473915,1734280257356,-151.0,0.00019999,2]
[345473916,1734280257366,-500.0,0.00019999,3]
[345473917,1734280257377,-500.0,0.00019999,3]
[345473918,1734280257387,-489.28008919,0.00019999,3]
[345473919,1734280257397,-500.0,0.00019999,3]
[345473920,1734280257406,-500.0,0.00019999,3]
[345473921,1734280257416,-500.0,0.00019999,3]
[345473922,1734280257427,-500.0,0.00019999,3]
[345473923,1734280257438,-500.0,0.00019999,3]
[345473924,1734280257450,-349.67080015,0.00019999,3]
[345473925,1734280257466,-283.35,0.00019999,3]
[345473926,1734280257475,-500.0,0.00019999,3]
[345473927,1734280257484,-500.0,0.00019999,3]
[345473928,1734280257493,-500.0,0.00019999,3]
[345473929,1734280257502,-469.16,0.00019999,3]
[345473930,1734280257511,-500.0,0.00019999,3]
[345473931,1734280257520,-500.0,0.00019999,3]
[345473932,1734280257530,-500.0,0.00019999,3]
[345473933,1734280257542,-500.0,0.00019999,3]
[345473934,1734280257551,-533.69,0.00019999,3]
[345473935,1734280257560,-500.0,0.00019999,3]
[345473936,1734280257570,-500.0,0.00019999,3]
[345473937,1734280257580,-331.99,0.00019999,3]
[345473938,1734280257589,-296.294118,0.00019999,2]
[345473939,1734280257600,-228.92,0.00019999,3]
[345473940,1734280257610,-307.44,0.00019999,3]
[345473941,1734280257619,-230.76,0.00019999,3]
[345473942,1734280257630,-500.0,0.00019999,3]
[345473943,1734280257639,-493.02,0.00019999,3]
[345473944,1734280257649,-500.0,0.00019999,3]
[345473945,1734280257659,-500.0,0.00019999,3]
[345473946,1734280257668,-151.0,0.00019999,2]
[345473947,1734280257679,-500.0,0.00019999,3]
[345473948,1734280257690,-151.0,0.00019999,2]
[345473949,1734280257700,-500.0,0.00019999,3]
[345473950,1734280257711,-432.29,0.00019999,3]
[345473951,1734280257721,-500.0,0.00019999,3]
[345473952,1734280257731,-500.0,0.00019999,3]
[345473953,1734280257740,-500.0,0.00019999,3]
[345473954,1734280257750,-500.0,0.00019999,3]
[345473955,1734280257760,-500.0,0.00019999,3]
[345473956,1734280257769,-210.69,0.00019999,3]
[345473957,1734280257778,-500.0,0.00019999,3]
[345473958,1734280257790,-500.0,0.00019999,3]
[345473959,1734280257801,-500.0,0.00019999,3]
[345473960,1734280257810,-522.29,0.00019999,3]
[345473961,1734280257819,-587.77018919,0.00019999,3]
[345473962,1734280257828,-151.0,0.00019999,2]
[345473963,1734280257837,-486.29,0.00019999,3]
[345473964,1734280257847,-151.0,0.00019999,2]
[345473965,1734280257856,-500.0,0.00019999,3]
[345473966,1734280257865,-500.0,0.00019999,3]
[345473967,1734280257875,-500.0,0.00019999,3]
[345473968,1734280257884,-500.0,0.00019999,3]
[345473969,1734280257893,-500.0,0.00019999,3]
[345473970,1734280257903,-500.0,0.00019999,3]
[345473971,1734280257912,-632.78,0.00019999,3]
[345473972,1734280257921,-232.08,0.00019999,3]
[345473973,1734280257930,-500.0,0.00019999,3]
[345473974,1734280257940,-500.0,0.00019999,3]
[345473975,1734280257949,-500.0,0.00019999,3]
[345473976,1734280257958,-500.0,0.00019999,3]
[345473977,1734280257968,-500.0,0.00019999,3]
[345473978,1734280257976,-494.38,0.00019999,3]
[345473979,1734280257986,-558.93,0.00019999,3]
[345473980,1734280257995,-692.17,0.00019999,3]
[345473981,1734280258005,-692.17,0.00019999,3]
[345473982,1734280258014,-692.17,0.00019999,3]
[345473983,1734280258023,-692.17,0.00019999,3]
[345473984,1734280258033,-692.17,0.00019999,3]
[345473985,1734280258042,-692.17,0.00019999,3]
[345473986,1734280258051,-692.17,0.00019999,3]
[345473987,1734280258061,-692.17,0.00019999,3]
[345473988,1734280258070,-692.17,0.00019999,3]
[345473989,1734280258080,-692.17,0.00019999,3]
[345473990,1734280258090,-692.17,0.00019999,3]
[345473991,1734280258099,-692.17,0.00019999,3]
[345473992,1734280258109,-692.17,0.00019999,3]
[345473993,1734280258118,-692.17,0.00019999,3]
[345473994,1734280258128,-692.17,0.00019999,3]
[345473995,1734280258138,-692.17,0.00019999,3]
[345473996,1734280258147,-692.17,0.00019999,3]
[345473997,1734280258157,-692.17,0.00019999,3]
[345473998,1734280258166,-692.27,0.00019999,3]
[345473999,1734280258175,-500.0,0.00019999,3]
[345474000,1734280258185,-461.95,0.00019999,3]
[345474001,1734280258194,-514.95,0.00019999,3]
[345474002,1734280258203,-506.05,0.00019999,3]
[345474003,1734280258213,-506.05,0.00019999,3]
[345474004,1734280258222,-506.05,0.00019999,3]
[345474005,1734280258232,-506.05,0.00019999,3]
[345474006,1734280258241,-506.05,0.00019999,3]
[345474007,1734280258251,-506.05,0.00019999,3]
[345474008,1734280258260,-506.05,0.00019999,3]
[345474009,1734280258269,-506.05,0.00019999,3]
[345474010,1734280258278,-506.05,0.00019999,3]
[345474011,1734280258298,-506.05,0.00019999,3]
[345474012,1734280258307,-506.05,0.00019999,3]
[345474013,1734280258316,-506.05,0.00019999,3]
[345474014,1734280258325,-506.05,0.00019999,3]
[345474015,1734280258335,-506.05,0.00019999,3]
[345474016,1734280258346,-506.05,0.00019999,3]
[345474017,1734280258355,-506.05,0.00019999,3]
[345474018,1734280258364,-506.05,0.00019999,3]
[345474019,1734280258374,-506.05,0.00019999,3]
[345474020,1734280258383,-506.1,0.00019999,3]
[345474021,1734280258392,-529.4222,0.00019999,2]
[345474022,1734280258402,-500.0,0.00019999,3]
[345474023,1734280258411,-500.0,0.00019999,3]
[345474024,1734280258422,-255.93,0.00019999,3]
[345474025,1734280258432,-529.4222,0.00019999,2]
[345474026,1734280258442,-151.0,0.00019999,2]
[345474027,1734280258452,-500.0,0.00019999,3]
[345474028,1734280258461,-314.99,0.00019999,3]
[345474029,1734280258470,-13423.71988769,0.0002,4]
[345474030,1734280258480,-14488.18020742,0.0002,2]
[345474031,1734280258489,-53893.58072302,0.0002,2]
[345474032,1734280258538,-3576.9,0.0002,2]
[345474033,1734280258549,-4163.19985,0.0002,2]
[345474034,1734280258560,-5642.4997,0.0002,2]
[345474035,1734280258571,-306.88380085,0.0002,2]
[345474036,1734280258582,-1130.9462483,0.0002,2]
[345474037,1734280258593,-4991.2,0.0002,2]
[345474038,1734280258607,-570497.38089748,0.0002,2]
[345474039,1734280258616,-1000.0,0.0002,2]
[345474040,1734280258626,-2110.0,0.0002,2]
[345474041,1734280258635,-5469.0,0.0002,2]
[345474042,1734280258644,-3480.296928,0.0002,30]
[345474043,1734280258656,-6000.0,0.0002,2]
[345474044,1734280258666,-5006.46368763,0.0002,2]
[345474045,1734280258678,-25932.68336599,0.0002,10]
[345474046,1734280258687,-60000.0,0.0002,10]
[345474047,1734280258697,-17567.02725826,0.0002,10]
[345474048,1734280258706,-2358.42751883,0.0002,2]
[345474049,1734280258717,-202.4,0.0002,2]
[345474050,1734280258726,-30000.0,0.0002,2]
[345474051,1734280258736,-30000.0,0.0002,2]
[345474052,1734280258745,-30000.0,0.0002,2]
[345474053,1734280258756,-30000.0,0.0002,2]
[345474054,1734280258766,-30000.0,0.0002,2]
[345474055,1734280258777,-30000.0,0.0002,2]
[345474056,1734280258788,-30000.0,0.0002,2]
[345474057,1734280258797,-30000.0,0.0002,2]
[345474058,1734280258807,-9431.36166971,0.0002,2]
[345474059,1734280258819,-7565.95,0.0002,2]
[345474060,1734280258831,-6597.02326901,0.0002,2]
[345474061,1734280258844,-2207.8,0.0002,2]
[345474062,1734280258857,-4197.86506128,0.0002,2]
[345474063,1734280258867,-5207.66861913,0.0002,2]
[345474064,1734280258887,-261.53799311,0.00019688,3]
[345474065,1734280259009,-340.11200689,0.00019688,3]
[345474066,1734280259019,-500.0,0.00019688,3]
[345474067,1734280259029,-504.26825574,0.00019799,3]
[345474068,1734280259040,-3525.4078242,0.0002,2]
[345474069,1734280259051,-2166.51650672,0.0002,2]
[345474070,1734280259063,-19100.40704995,0.0002,2]
[345474071,1734280259072,-30000.0,0.0002,2]
[345474072,1734280259082,-908.97729004,0.0002,2]
[345474073,1734280259092,-739.28549347,0.0002,2]
[345474074,1734280259104,-403.77,0.0002,2]
[345474075,1734280259115,-1547.1,0.0002,2]
[345474076,1734280259126,-2205.92163227,0.0002,2]
[345474077,1734280259167,-3505.63072412,0.0002,2]
[345474078,1734280259178,-2310.96821317,0.0002,2]
[345474079,1734280259189,-3894.3,0.0002,2]
[345474080,1734280259200,-3613.141915,0.0002,2]
[345474081,1734280259211,-10870.90473193,0.0002,2]
[345474082,1734280259220,-4000.0,0.0002,2]
[345474083,1734280259230,-10729.09526816,0.0002,2]
[345474084,1734280259241,-15503.58427858,0.0002,2]
[345474086,1734280702040,156.46,0.00010137,2]
[345474087,1734280808772,157.94934818,0.0002,120]
[345474088,1734280946784,450.0,0.00013,2]
[345474089,1734280948300,500.0,0.00015,2]
[345474117,1734281432158,-1172.71,0.00015489,2]
[345474120,1734281432169,-550.0,0.00017,2]
[345474123,1734281432178,-196.5036643,0.00017084,2]
[345474125,1734281432187,-156.46,0.00017184,2]
[345474126,1734281432197,-250.0,0.00017415,2]
[345474128,1734281432208,-2271.92262743,0.00017432,2]
[345474129,1734281432233,-566.63882928,0.00017432,2]
[345474130,1734281432244,-2548.52400949,0.00017432,2]
[345474131,1734281432275,-1994.0945338,0.00017432,2]
[345474132,1734281432284,-150.0,0.00017443,2]
[345474133,1734281432293,-1852.42,0.00017444,2]
[345474134,1734281432303,-1172.71,0.00017753,2]
[345474135,1734281432312,-158.19,0.00017824,2]
[345474136,1734281432323,-171.81,0.00017911,2]
[345474137,1734281432332,-150.0,0.00017975,2]
[345474138,1734281432342,-150.0,0.00017975,2]
[345474139,1734281432351,-262.83383418,0.00017975,2]
[345474140,1734281432361,-169.12875776,0.00017975,2]
[345474141,1734281432371,-150.0,0.00017975,2]
[345474142,1734281432380,-150.0,0.00017975,2]
[345474143,1734281432390,-215.43006958,0.00017975,2]
[345474144,1734281432399,-150.0,0.00017975,2]
[345474145,1734281432409,-274.17981197,0.00017975,2]
[345474146,1734281432418,-150.0,0.00017975,2]
[345474147,1734281432428,-150.0,0.00017975,2]
[345474148,1734281432437,-150.0,0.00018003,2]
[345474149,1734281432447,-150.0,0.0001801,2]
[345474150,1734281432457,-150.0,0.00018019,2]
[345474151,1734281432466,-150.0,0.0001803,2]
[345474152,1734281432475,-150.0,0.00018045,2]
[345474153,1734281432488,-150.0,0.00018057,2]
[345474154,1734281432503,-150.0,0.00018062,2]
[345474155,1734281432512,-150.0,0.0001808,2]
[345474156,1734281432522,-1264.22,0.00018082,2]
[345474157,1734281432531,-150.0,0.00018085,2]
[345474158,1734281432540,-150.0,0.00018106,2]
[345474159,1734281432550,-150.0,0.00018112,2]
[345474160,1734281432560,-150.0,0.00018116,2]
[345474162,1734281432569,-150.0,0.0001814,2]
[345474163,1734281432580,-150.0,0.00018142,2]
[345474164,1734281432590,-150.0,0.00018149,2]
[345474165,1734281432600,-150.0,0.00018151,2]
[345474166,1734281432610,-150.0,0.00018167,2]
[345474167,1734281432619,-364.37,0.00018175,2]
[345474169,1734281432628,-150.0,0.00018175,2]
[345474171,1734281432638,-150.0,0.00018186,2]
[345474173,1734281432647,-150.0,0.00018192,2]
[345474175,1734281432657,-150.0,0.00018194,2]
[345474176,1734281432666,-150.0,0.00018221,2]
[345474177,1734281432676,-150.0,0.00018222,2]
[345474178,1734281432685,-275.71730443,0.00018232,2]
[345474179,1734281432694,-150.0,0.00018236,2]
[345474180,1734281432704,-150.0,0.00018249,2]
[345474181,1734281432714,-150.0,0.00018256,2]
[345474182,1734281432723,-150.0,0.00018276,2]
[345474183,1734281432734,-150.0,0.00018279,2]
[345474184,1734281432743,-150.0,0.00018291,2]
[345474185,1734281432753,-150.0,0.00018304,2]
[345474186,1734281432762,-150.0,0.00018308,2]
[345474187,1734281432772,-712.01,0.00018313,2]
[345474188,1734281432781,-150.0,0.00018323,2]
[345474189,1734281432789,-150.0,0.00018326,2]
[345474190,1734281432801,-150.0,0.00018329,2]
[345474191,1734281432812,-150.0,0.00018331,2]
[345474192,1734281432821,-200.0,0.0001834,2]
[345474193,1734281432830,-150.0,0.00018358,2]
[345474194,1734281432839,-150.0,0.00018361,2]
[345474195,1734281432850,-150.0,0.00018366,2]
[345474196,1734281432861,-250.0,0.00018368,2]
[345474197,1734281432871,-150.0,0.00018375,2]
[345474198,1734281432882,-150.0,0.00018375,2]
[345474199,1734281432891,-150.0,0.00018386,2]
[345474200,1734281432900,-150.0,0.00018396,2]
[345474201,1734281432910,-150.0,0.0001841,2]
[345474202,1734281432919,-150.0,0.00018413,2]
[345474203,1734281432929,-1000.0,0.00018417,2]
[345474204,1734281432938,-150.0,0.00018431,2]
[345474205,1734281432947,-150.0,0.0001844,2]
[345474206,1734281432956,-150.0,0.00018453,2]
[345474207,1734281432966,-150.0,0.00018466,2]
[345474208,1734281432975,-150.0,0.00018468,2]
[345474209,1734281432988,-150.0,0.00018475,2]
[345474210,1734281432997,-150.0,0.00018495,2]
[345474211,1734281433007,-150.0,0.00018496,2]
[345474212,1734281433016,-150.0,0.00018501,2]
[345474213,1734281433025,-150.0,0.00018523,2]
[345474214,1734281433034,-150.0,0.00018536,2]
[345474215,1734281433044,-150.0,0.0001854,2]
[345474216,1734281433054,-150.0,0.0001855,2]
[345474217,1734281433064,-150.0,0.00018571,2]
[345474218,1734281433073,-150.0,0.00018575,2]
[345474219,1734281433083,-150.0,0.00018577,2]
[345474220,1734281433093,-150.0,0.00018583,2]
[345474221,1734281433102,-150.0,0.00018605,2]
[345474222,1734281433112,-150.0,0.00018606,2]
[345474223,1734281433122,-170.2,0.00018607,2]
[345474224,1734281433131,-170.2,0.00018625,2]
[345474225,1734281433141,-150.0,0.00018627,2]
[345474226,1734281433150,-150.0,0.00018632,2]
[345474227,1734281433160,-150.0,0.00018641,2]
[345474228,1734281433169,-150.0,0.00018641,2]
[345474229,1734281433179,-170.2,0.00018644,2]
[345474230,1734281433188,-150.0,0.00018659,2]
[345474231,1734281433198,-170.2,0.00018662,2]
[345474232,1734281433207,-500.0,0.00018664,2]
[345474233,1734281433216,-2.49568823,0.00018664,2]
[345474234,1734281433229,-497.50431177,0.00018664,2]
[345474235,1734281433242,-150.0,0.0001867,2]
[345474236,1734281433252,-150.0,0.00018676,2]
[345474237,1734281433261,-170.2,0.00018681,2]
[345474238,1734281433271,-150.0,0.00018687,2]
[345474239,1734281433281,-170.2,0.000187,2]
[345474240,1734281433290,-150.0,0.00018711,2]
[345474241,1734281433300,-150.0,0.00018713,2]
[345474242,1734281433310,-150.0,0.00018714,2]
[345474243,1734281433319,-150.0,0.0001872,2]
[345474244,1734281433329,-525.91,0.00018741,2]
[345474245,1734281433339,-150.0,0.00018741,2]
[345474246,1734281433348,-150.0,0.00018746,2]
[345474247,1734281433358,-1264.22,0.00018751,2]
[345474248,1734281433367,-150.0,0.00018757,2]
[345474249,1734281433376,-150.0,0.00018769,2]
[345474250,1734281433386,-150.0,0.00018774,2]
[345474251,1734281433396,-150.0,0.00018774,2]
[345474252,1734281433405,-150.0,0.00018781,2]